[Event "Titled Tuesday Blitz January 17 Early 2023"]
[White "Abdilkhair, Abilmansur"]
[Black "Al-Tarboush, Ward"]
[WhiteFideId "13716417"]
[BlackFideId "7601450"]
[WhiteElo "2268"]
[BlackElo "2256"]
[Result "0-1"]
[Round "03"]
[TimeControl "180+2"]
[Date "2023.01.17"]
[WhiteClock "0:00:09"]
[BlackClock "0:01:14"]

1. d4 {[%clk 0:02:53]}  Nf6 {[%clk 0:02:59]} 2. c4 {[%clk 0:02:53]}  g6 {[%clk 0:02:58]} 3. Nc3 {[%clk 0:02:54]}  d5 {[%clk 0:02:58]} 4. cxd5 {[%clk 0:02:54]}  Nxd5 {[%clk 0:02:59]} 5. e4 {[%clk 0:02:54]}  Nxc3 {[%clk 0:02:58]} 6. bxc3 {[%clk 0:02:55]}  Bg7 {[%clk 0:02:59]} 7. Bc4 {[%clk 0:02:53]}  c5 {[%clk 0:02:59]} 8. Ne2 {[%clk 0:02:53]}  O-O {[%clk 0:02:59]} 9. O-O {[%clk 0:02:51]}  Nc6 {[%clk 0:02:59]} 10. Be3 {[%clk 0:02:52]}  b6 {[%clk 0:02:59]} 11. Rc1 {[%clk 0:02:51]}  Qc7 {[%clk 0:02:57]} 12. dxc5 {[%clk 0:02:42]}  bxc5 {[%clk 0:02:56]} 13. Nf4 {[%clk 0:02:31]}  e6 {[%clk 0:02:51]} 14. Qe2 {[%clk 0:02:21]}  Ne5 {[%clk 0:02:50]} 15. Bb3 {[%clk 0:02:07]}  a5 {[%clk 0:02:49]} 16. Rfd1 {[%clk 0:02:03]}  a4 {[%clk 0:02:49]} 17. Bc2 {[%clk 0:01:59]}  Ba6 {[%clk 0:02:49]} 18. Qe1 {[%clk 0:01:58]}  Bc4 {[%clk 0:02:40]} 19. Bb1 {[%clk 0:01:35]}  Ng4 {[%clk 0:02:38]} 20. h3 {[%clk 0:00:50]}  Nxe3 {[%clk 0:02:37]} 21. Qxe3 {[%clk 0:00:51]}  Bh6 {[%clk 0:02:34]} 22. Nxe6 {[%clk 0:00:47]}  Bxe3 {[%clk 0:02:33]} 23. Nxc7 {[%clk 0:00:47]}  Bxc1 {[%clk 0:02:29]} 24. Nxa8 {[%clk 0:00:46]}  Bb2 {[%clk 0:02:22]} 25. Nb6 {[%clk 0:00:45]}  Bb5 {[%clk 0:02:14]} 26. c4 {[%clk 0:00:39]}  Be8 {[%clk 0:02:06]} 27. Rd8 {[%clk 0:00:32]}  Bc6 {[%clk 0:01:57]} 28. Rd6 {[%clk 0:00:26]}  Be8 {[%clk 0:01:56]} 29. Bc2 {[%clk 0:00:23]}  a3 {[%clk 0:01:56]} 30. Nd5 {[%clk 0:00:18]}  Be5 {[%clk 0:01:52]} 31. Ra6 {[%clk 0:00:18]}  Bb2 {[%clk 0:01:51]} 32. f4 {[%clk 0:00:16]}  Kg7 {[%clk 0:01:49]} 33. e5 {[%clk 0:00:16]}  Bd7 {[%clk 0:01:49]} 34. Kh2 {[%clk 0:00:14]}  Be6 {[%clk 0:01:50]} 35. Ra5 {[%clk 0:00:13]}  Rc8 {[%clk 0:01:48]} 36. Bb3 {[%clk 0:00:11]}  g5 {[%clk 0:01:43]} 37. Ra7 {[%clk 0:00:10]}  gxf4 {[%clk 0:01:42]} 38. Nxf4 {[%clk 0:00:11]}  Bxe5 {[%clk 0:01:41]} 39. g3 {[%clk 0:00:09]}  Bxf4 {[%clk 0:01:34]} 40. gxf4 {[%clk 0:00:10]}  Rd8 {[%clk 0:01:35]} 41. Rxa3 {[%clk 0:00:09]}  Rd2+ {[%clk 0:01:35]} 42. Kg3 {[%clk 0:00:08]}  Rd3+ {[%clk 0:01:36]} 43. Kf2 {[%clk 0:00:08]}  Bxc4 {[%clk 0:01:34]} 44. Ra5 {[%clk 0:00:07]}  Bxb3 {[%clk 0:01:34]} 45. axb3 {[%clk 0:00:08]}  Rxb3 {[%clk 0:01:34]} 46. Rxc5 {[%clk 0:00:08]}  Rxh3 {[%clk 0:01:34]} 47. Rg5+ {[%clk 0:00:08]}  Kf6 {[%clk 0:01:34]} 48. Rb5 {[%clk 0:00:05]}  Ra3 {[%clk 0:01:33]} 49. Kg2 {[%clk 0:00:05]}  Kg6 {[%clk 0:01:31]} 50. Kf2 {[%clk 0:00:05]}  h5 {[%clk 0:01:30]} 51. Rg5+ {[%clk 0:00:04]}  Kh6 {[%clk 0:01:29]} 52. Rg8 {[%clk 0:00:05]}  Ra6 {[%clk 0:01:11]} 53. Kg2 {[%clk 0:00:04]}  Rg6+ {[%clk 0:01:11]} 54. Rxg6+ {[%clk 0:00:04]}  Kxg6 {[%clk 0:01:11]} 55. Kg3 {[%clk 0:00:04]}  Kf5 {[%clk 0:01:12]} 56. Kf3 {[%clk 0:00:03]}  h4 {[%clk 0:01:12]} 57. Ke3 {[%clk 0:00:03]}  Kg4 {[%clk 0:01:12]} 58. Ke4 {[%clk 0:00:02]}  h3 {[%clk 0:01:13]} 59. Ke5 {[%clk 0:00:03]}  h2 {[%clk 0:01:13]} 60. f5 {[%clk 0:00:03]}  h1=Q {[%clk 0:01:14]} 61. Kf6 {[%clk 0:00:04]}  Qd5 {[%clk 0:01:14]} 62. Kg7 {[%clk 0:00:04]}  Qxf5 {[%clk 0:01:14]} 63. Kf8 {[%clk 0:00:05]}  Qd7 {[%clk 0:01:14]} 64. Kg7 {[%clk 0:00:05]}  f5+ {[%clk 0:01:14]} 65. Kf6 {[%clk 0:00:06]}  f4 {[%clk 0:01:14]} 66. Ke5 {[%clk 0:00:07]}  f3 {[%clk 0:01:14]} 67. Kf6 {[%clk 0:00:08]}  f2 {[%clk 0:01:15]} 68. Ke5 {[%clk 0:00:09]}  f1=Q {[%clk 0:01:14]} 0-1


[Site "https://www.chess.com"]

[Event "Titled Tuesday Blitz January 17 Early 2023"]
[White "Florescu, Codrut-Constantin"]
[Black "Kabilov, Amin"]
[WhiteFideId "1202200"]
[BlackFideId "14700859"]
[WhiteElo "2259"]
[BlackElo "2207"]
[Result "1-0"]
[Round "03"]
[TimeControl "180+2"]
[Date "2023.01.17"]
[WhiteClock "0:00:40"]
[BlackClock "0:00:01"]

1. d4 {[%clk 0:02:57]}  Nf6 {[%clk 0:02:59]} 2. c4 {[%clk 0:02:56]}  c5 {[%clk 0:02:54]} 3. dxc5 {[%clk 0:02:55]}  e6 {[%clk 0:02:53]} 4. a3 {[%clk 0:02:54]}  a5 {[%clk 0:02:48]} 5. e3 {[%clk 0:02:51]}  Bxc5 {[%clk 0:02:48]} 6. Nf3 {[%clk 0:02:51]}  O-O {[%clk 0:02:46]} 7. Nc3 {[%clk 0:02:50]}  d5 {[%clk 0:02:41]} 8. cxd5 {[%clk 0:02:44]}  exd5 {[%clk 0:02:40]} 9. Be2 {[%clk 0:02:40]}  Nc6 {[%clk 0:02:40]} 10. O-O {[%clk 0:02:39]}  Re8 {[%clk 0:02:21]} 11. Nb5 {[%clk 0:02:37]}  Ne4 {[%clk 0:02:15]} 12. Nbd4 {[%clk 0:02:33]}  Bg4 {[%clk 0:02:02]} 13. Bd2 {[%clk 0:02:22]}  Nxd4 {[%clk 0:00:58]} 14. Nxd4 {[%clk 0:02:19]}  Bxd4 {[%clk 0:00:57]} 15. Bxg4 {[%clk 0:02:12]}  Bxb2 {[%clk 0:00:51]} 16. Rb1 {[%clk 0:02:11]}  Bxa3 {[%clk 0:00:48]} 17. Rxb7 {[%clk 0:02:09]}  Re7 {[%clk 0:00:45]} 18. Rb3 {[%clk 0:02:04]}  Bc5 {[%clk 0:00:36]} 19. Bc1 {[%clk 0:02:02]}  a4 {[%clk 0:00:25]} 20. Rd3 {[%clk 0:02:02]}  Nf6 {[%clk 0:00:24]} 21. Bb2 {[%clk 0:01:48]}  Rb7 {[%clk 0:00:14]} 22. Bxf6 {[%clk 0:01:38]}  Qxf6 {[%clk 0:00:13]} 23. Bf3 {[%clk 0:01:33]}  Rc7 {[%clk 0:00:12]} 24. Bxd5 {[%clk 0:01:32]}  Ra5 {[%clk 0:00:09]} 25. e4 {[%clk 0:01:31]}  a3 {[%clk 0:00:09]} 26. Rf3 {[%clk 0:01:31]}  Qe5 {[%clk 0:00:07]} 27. Ba2 {[%clk 0:01:27]}  Bf8 {[%clk 0:00:06]} 28. Qd3 {[%clk 0:01:21]}  Raa7 {[%clk 0:00:03]} 29. g3 {[%clk 0:01:08]}  Qb2 {[%clk 0:00:03]} 30. Qd5 {[%clk 0:00:56]}  Rc2 {[%clk 0:00:03]} 31. Rxf7 {[%clk 0:00:47]}  Qxa2 {[%clk 0:00:03]} 32. Rxa7+ {[%clk 0:00:46]}  Qxd5 {[%clk 0:00:02]} 33. exd5 {[%clk 0:00:47]}  Bc5 {[%clk 0:00:01]} 34. Ra8+ {[%clk 0:00:39]}  Kf7 {[%clk 0:00:01]} 35. Kg2 {[%clk 0:00:40]} 1-0


[Site "https://www.chess.com"]

[Event "Titled Tuesday Blitz January 17 Early 2023"]
[White "Ruge, Edison"]
[Black "Ibadov, Dashgyn"]
[WhiteFideId "4401000"]
[BlackFideId "24107514"]
[WhiteElo "2201"]
[BlackElo "2391"]
[Result "0-1"]
[Round "03"]
[TimeControl "180+2"]
[Date "2023.01.17"]
[WhiteClock "0:00:12"]
[BlackClock "0:00:26"]

1. e4 {[%clk 0:02:43]}  e6 {[%clk 0:02:56]} 2. d3 {[%clk 0:02:43]}  d5 {[%clk 0:02:56]} 3. Nd2 {[%clk 0:02:44]}  Nf6 {[%clk 0:02:54]} 4. Ngf3 {[%clk 0:02:43]}  c5 {[%clk 0:02:55]} 5. g3 {[%clk 0:02:42]}  Nc6 {[%clk 0:02:55]} 6. Bg2 {[%clk 0:02:37]}  g6 {[%clk 0:02:55]} 7. O-O {[%clk 0:02:36]}  Bg7 {[%clk 0:02:56]} 8. c3 {[%clk 0:02:33]}  O-O {[%clk 0:02:55]} 9. Re1 {[%clk 0:02:31]}  a5 {[%clk 0:02:56]} 10. a4 {[%clk 0:02:27]}  b6 {[%clk 0:02:54]} 11. exd5 {[%clk 0:02:17]}  exd5 {[%clk 0:02:48]} 12. Nb3 {[%clk 0:02:13]}  Bb7 {[%clk 0:02:32]} 13. d4 {[%clk 0:02:08]}  c4 {[%clk 0:02:28]} 14. Nbd2 {[%clk 0:02:04]}  Bc8 {[%clk 0:02:22]} 15. Nf1 {[%clk 0:02:00]}  Bf5 {[%clk 0:02:17]} 16. Ne5 {[%clk 0:01:54]}  Nxe5 {[%clk 0:02:09]} 17. Rxe5 {[%clk 0:01:48]}  Be4 {[%clk 0:02:07]} 18. Bg5 {[%clk 0:01:35]}  h6 {[%clk 0:02:00]} 19. Bxe4 {[%clk 0:01:33]}  hxg5 {[%clk 0:01:48]} 20. Bg2 {[%clk 0:01:31]}  Ne4 {[%clk 0:01:48]} 21. Rxe4 {[%clk 0:01:23]}  dxe4 {[%clk 0:01:47]} 22. Bxe4 {[%clk 0:01:24]}  Ra7 {[%clk 0:01:46]} 23. Ne3 {[%clk 0:01:23]}  Re7 {[%clk 0:01:45]} 24. Qf3 {[%clk 0:01:21]}  Qc8 {[%clk 0:01:21]} 25. Bd5 {[%clk 0:01:15]}  Rfe8 {[%clk 0:01:17]} 26. Nxc4 {[%clk 0:01:06]}  g4 {[%clk 0:01:16]} 27. Qd3 {[%clk 0:00:59]}  Re1+ {[%clk 0:01:11]} 28. Rxe1 {[%clk 0:00:54]}  Rxe1+ {[%clk 0:01:12]} 29. Kg2 {[%clk 0:00:54]}  Qd7 {[%clk 0:00:55]} 30. Nxb6 {[%clk 0:00:43]}  Qd6 {[%clk 0:00:55]} 31. Qb5 {[%clk 0:00:43]}  Kh7 {[%clk 0:00:45]} 32. Nc4 {[%clk 0:00:41]}  Qe7 {[%clk 0:00:40]} 33. Nxa5 {[%clk 0:00:23]}  Rb1 {[%clk 0:00:30]} 34. h3 {[%clk 0:00:12]}  Qe1 {[%clk 0:00:26]} 0-1


[Site "https://www.chess.com"]

[Event "Titled Tuesday Blitz January 17 Early 2023"]
[White "Mitrovic, Darko R"]
[Black "Bagwe Gaurang"]
[WhiteFideId "927023"]
[BlackFideId "45039895"]
[WhiteElo "2220"]
[BlackElo "2067"]
[Result "0-1"]
[Round "03"]
[TimeControl "180+2"]
[Date "2023.01.17"]
[WhiteClock "0:00:01"]
[BlackClock "0:00:04"]

1. d4 {[%clk 0:03:00]}  e6 {[%clk 0:02:57]} 2. Nf3 {[%clk 0:02:59]}  d5 {[%clk 0:02:57]} 3. g3 {[%clk 0:02:59]}  c5 {[%clk 0:02:56]} 4. c3 {[%clk 0:02:46]}  Nf6 {[%clk 0:02:55]} 5. Bg2 {[%clk 0:02:46]}  b6 {[%clk 0:02:55]} 6. O-O {[%clk 0:02:47]}  Be7 {[%clk 0:02:55]} 7. Ne5 {[%clk 0:02:40]}  O-O {[%clk 0:02:55]} 8. Nd2 {[%clk 0:02:40]}  Bb7 {[%clk 0:02:55]} 9. f4 {[%clk 0:02:40]}  Nbd7 {[%clk 0:02:55]} 10. e3 {[%clk 0:02:40]}  Rc8 {[%clk 0:02:55]} 11. h3 {[%clk 0:02:29]}  b5 {[%clk 0:02:54]} 12. a3 {[%clk 0:02:28]}  a5 {[%clk 0:02:51]} 13. Nxd7 {[%clk 0:02:25]}  Nxd7 {[%clk 0:02:46]} 14. Nf3 {[%clk 0:02:20]}  Qb6 {[%clk 0:02:38]} 15. g4 {[%clk 0:02:10]}  b4 {[%clk 0:02:36]} 16. axb4 {[%clk 0:02:10]}  axb4 {[%clk 0:02:36]} 17. Bd2 {[%clk 0:01:58]}  Ba6 {[%clk 0:02:31]} 18. Rf2 {[%clk 0:01:50]}  b3 {[%clk 0:02:30]} 19. Ne5 {[%clk 0:01:41]}  Rfd8 {[%clk 0:02:11]} 20. Nxd7 {[%clk 0:01:36]}  Rxd7 {[%clk 0:02:10]} 21. g5 {[%clk 0:01:36]}  Bd3 {[%clk 0:02:05]} 22. h4 {[%clk 0:01:35]}  c4 {[%clk 0:01:54]} 23. Bf1 {[%clk 0:01:30]}  Bxf1 {[%clk 0:01:34]} 24. Rxf1 {[%clk 0:01:27]}  Ra7 {[%clk 0:01:35]} 25. Rxa7 {[%clk 0:01:25]}  Qxa7 {[%clk 0:01:35]} 26. h5 {[%clk 0:01:25]}  Qd7 {[%clk 0:01:29]} 27. Qa1 {[%clk 0:01:19]}  e5 {[%clk 0:01:22]} 28. dxe5 {[%clk 0:01:05]}  Qg4+ {[%clk 0:01:19]} 29. Kf2 {[%clk 0:01:06]}  Qh4+ {[%clk 0:01:12]} 30. Kg2 {[%clk 0:01:01]}  Qxh5 {[%clk 0:01:11]} 31. Qa6 {[%clk 0:00:49]}  Qg4+ {[%clk 0:00:57]} 32. Kf2 {[%clk 0:00:46]}  Rd8 {[%clk 0:00:37]} 33. Rg1 {[%clk 0:00:32]}  Qh4+ {[%clk 0:00:35]} 34. Kf3 {[%clk 0:00:22]}  Qh3+ {[%clk 0:00:24]} 35. Kf2 {[%clk 0:00:20]}  Bc5 {[%clk 0:00:20]} 36. Qc6 {[%clk 0:00:13]}  Qh2+ {[%clk 0:00:09]} 37. Kf1 {[%clk 0:00:08]}  Qxd2 {[%clk 0:00:09]} 38. Qxc5 {[%clk 0:00:08]}  Qxb2 {[%clk 0:00:09]} 39. Qe7 {[%clk 0:00:04]}  Rf8 {[%clk 0:00:08]} 40. Qb4 {[%clk 0:00:03]}  Qc2 {[%clk 0:00:08]} 41. Rg2 {[%clk 0:00:02]}  Qc1+ {[%clk 0:00:07]} 42. Kf2 {[%clk 0:00:02]}  b2 {[%clk 0:00:08]} 43. Rg1 {[%clk 0:00:03]}  Qc2+ {[%clk 0:00:06]} 44. Kf3 {[%clk 0:00:03]}  Qe4+ {[%clk 0:00:04]} 45. Kf2 {[%clk 0:00:03]}  g6 {[%clk 0:00:04]} 46. Qxb2 {[%clk 0:00:02]}  Rc8 {[%clk 0:00:04]} 47. Qd2 {[%clk 0:00:01]}  Rb8 {[%clk 0:00:04]} 0-1


[Site "https://www.chess.com"]

[Event "Titled Tuesday Blitz January 17 Early 2023"]
[White "Thomas, Anysia"]
[Black "Renjith, Sravan"]
[WhiteFideId "670472"]
[BlackFideId "4306783"]
[WhiteElo "2147"]
[BlackElo "2172"]
[Result "0-1"]
[Round "03"]
[TimeControl "180+2"]
[Date "2023.01.17"]
[WhiteClock "0:00:01"]
[BlackClock "0:00:07"]

1. d4 {[%clk 0:03:00]}  d5 {[%clk 0:02:54]} 2. c4 {[%clk 0:03:00]}  e6 {[%clk 0:02:54]} 3. Nf3 {[%clk 0:03:00]}  c5 {[%clk 0:02:54]} 4. cxd5 {[%clk 0:02:58]}  exd5 {[%clk 0:02:54]} 5. g3 {[%clk 0:02:55]}  Nc6 {[%clk 0:02:54]} 6. Bg2 {[%clk 0:02:55]}  Nf6 {[%clk 0:02:55]} 7. O-O {[%clk 0:02:56]}  Be7 {[%clk 0:02:56]} 8. Nc3 {[%clk 0:02:56]}  O-O {[%clk 0:02:56]} 9. dxc5 {[%clk 0:02:52]}  Bxc5 {[%clk 0:02:54]} 10. Bg5 {[%clk 0:02:52]}  d4 {[%clk 0:02:52]} 11. Na4 {[%clk 0:02:17]}  Be7 {[%clk 0:02:49]} 12. b3 {[%clk 0:02:16]}  h6 {[%clk 0:02:35]} 13. Bc1 {[%clk 0:02:15]}  Be6 {[%clk 0:02:06]} 14. Bb2 {[%clk 0:02:06]}  b5 {[%clk 0:02:05]} 15. Rc1 {[%clk 0:01:59]}  Nb4 {[%clk 0:01:26]} 16. Nc5 {[%clk 0:01:54]}  Nxa2 {[%clk 0:01:23]} 17. Nxe6 {[%clk 0:01:51]}  fxe6 {[%clk 0:01:21]} 18. Rc6 {[%clk 0:01:39]}  Nc3 {[%clk 0:01:02]} 19. Qd3 {[%clk 0:01:01]}  b4 {[%clk 0:00:31]} 20. Nxd4 {[%clk 0:00:27]}  Qxd4 {[%clk 0:00:26]} 21. Qxd4 {[%clk 0:00:21]}  Nxe2+ {[%clk 0:00:26]} 22. Kh1 {[%clk 0:00:21]}  Nxd4 {[%clk 0:00:26]} 23. Bxd4 {[%clk 0:00:22]}  Rfd8 {[%clk 0:00:19]} 24. Rxe6 {[%clk 0:00:19]}  Rac8 {[%clk 0:00:13]} 25. Rxe7 {[%clk 0:00:15]}  Rxd4 {[%clk 0:00:12]} 26. Rxa7 {[%clk 0:00:14]}  Rd3 {[%clk 0:00:12]} 27. Ra6 {[%clk 0:00:10]}  Kf8 {[%clk 0:00:08]} 28. Bh3 {[%clk 0:00:09]}  Rcd8 {[%clk 0:00:08]} 29. Be6 {[%clk 0:00:09]}  Ne4 {[%clk 0:00:07]} 30. Bc4 {[%clk 0:00:06]}  Rd2 {[%clk 0:00:06]} 31. Kg2 {[%clk 0:00:06]}  R8d6 {[%clk 0:00:03]} 32. Ra7 {[%clk 0:00:06]}  Rf6 {[%clk 0:00:03]} 33. Ra8+ {[%clk 0:00:04]}  Ke7 {[%clk 0:00:04]} 34. Ra7+ {[%clk 0:00:05]}  Kd8 {[%clk 0:00:04]} 35. Ra8+ {[%clk 0:00:05]}  Kc7 {[%clk 0:00:03]} 36. Ra7+ {[%clk 0:00:05]}  Kb6 {[%clk 0:00:04]} 37. Rxg7 {[%clk 0:00:05]}  Nxf2 {[%clk 0:00:04]} 38. Rg8 {[%clk 0:00:02]}  Ng4+ {[%clk 0:00:03]} 39. Kg1 {[%clk 0:00:02]}  Rxf1+ {[%clk 0:00:04]} 40. Kxf1 {[%clk 0:00:03]}  Nxh2+ {[%clk 0:00:04]} 41. Kg1 {[%clk 0:00:02]}  Nf3+ {[%clk 0:00:05]} 42. Kf1 {[%clk 0:00:02]}  Ne5 {[%clk 0:00:06]} 43. Rg6+ {[%clk 0:00:02]}  Nxg6 {[%clk 0:00:06]} 44. Ke1 {[%clk 0:00:02]}  Rd4 {[%clk 0:00:06]} 45. Ke2 {[%clk 0:00:02]}  Ne5 {[%clk 0:00:05]} 46. Be6 {[%clk 0:00:01]}  Kc5 {[%clk 0:00:06]} 47. Ke3 {[%clk 0:00:02]}  Rd3+ {[%clk 0:00:06]} 48. Kf4 {[%clk 0:00:02]}  Kd6 {[%clk 0:00:06]} 49. Bc4 {[%clk 0:00:01]}  Rd4+ {[%clk 0:00:06]} 50. Kf5 {[%clk 0:00:01]}  Nxc4 {[%clk 0:00:07]} 51. bxc4 {[%clk 0:00:01]}  b3 {[%clk 0:00:07]} 0-1


[Site "https://www.chess.com"]

[Event "Titled Tuesday Blitz January 17 Early 2023"]
[White "Rodrigues, Leonardo De Miranda"]
[Black "Bosnjak, Petar"]
[WhiteFideId "2108658"]
[BlackFideId "14532581"]
[WhiteElo "2112"]
[BlackElo "2337"]
[Result "1/2-1/2"]
[Round "03"]
[TimeControl "180+2"]
[Date "2023.01.17"]
[WhiteClock "0:00:10"]
[BlackClock "0:00:17"]

1. d4 {[%clk 0:02:58]}  d5 {[%clk 0:02:42]} 2. Nf3 {[%clk 0:02:55]}  Nf6 {[%clk 0:02:42]} 3. c4 {[%clk 0:02:55]}  c6 {[%clk 0:02:42]} 4. Nc3 {[%clk 0:02:55]}  dxc4 {[%clk 0:02:42]} 5. e4 {[%clk 0:02:51]}  b5 {[%clk 0:02:40]} 6. e5 {[%clk 0:02:50]}  Nd5 {[%clk 0:02:41]} 7. a4 {[%clk 0:02:48]}  b4 {[%clk 0:02:41]} 8. Ne4 {[%clk 0:02:46]}  a5 {[%clk 0:02:37]} 9. Bxc4 {[%clk 0:02:41]}  e6 {[%clk 0:02:37]} 10. Bg5 {[%clk 0:02:38]}  Qc7 {[%clk 0:02:36]} 11. Rc1 {[%clk 0:02:31]}  h6 {[%clk 0:02:36]} 12. Bh4 {[%clk 0:02:12]}  Bb7 {[%clk 0:02:35]} 13. O-O {[%clk 0:02:03]}  Nd7 {[%clk 0:02:28]} 14. Re1 {[%clk 0:02:02]}  N7b6 {[%clk 0:01:56]} 15. Bb3 {[%clk 0:02:01]}  g5 {[%clk 0:01:54]} 16. Bg3 {[%clk 0:01:59]}  O-O-O {[%clk 0:01:54]} 17. Nd6+ {[%clk 0:01:52]}  Kb8 {[%clk 0:01:52]} 18. Qc2 {[%clk 0:01:44]}  f5 {[%clk 0:01:49]} 19. Nxb7 {[%clk 0:01:29]}  Kxb7 {[%clk 0:01:47]} 20. h3 {[%clk 0:01:25]}  Be7 {[%clk 0:01:41]} 21. Nd2 {[%clk 0:01:21]}  h5 {[%clk 0:01:39]} 22. f3 {[%clk 0:01:16]}  g4 {[%clk 0:01:37]} 23. hxg4 {[%clk 0:01:05]}  hxg4 {[%clk 0:01:35]} 24. fxg4 {[%clk 0:01:05]}  Rdg8 {[%clk 0:01:28]} 25. Nc4 {[%clk 0:00:50]}  Nxc4 {[%clk 0:01:27]} 26. Bxc4 {[%clk 0:00:47]}  Rxg4 {[%clk 0:01:19]} 27. Bxd5 {[%clk 0:00:47]}  exd5 {[%clk 0:01:20]} 28. Bh2 {[%clk 0:00:40]}  Rxd4 {[%clk 0:01:10]} 29. Qxf5 {[%clk 0:00:37]}  Rdh4 {[%clk 0:01:05]} 30. Bg3 {[%clk 0:00:36]}  Qb6+ {[%clk 0:01:05]} 31. Kf1 {[%clk 0:00:35]}  Rf8 {[%clk 0:00:55]} 32. Qxf8 {[%clk 0:00:35]}  Bxf8 {[%clk 0:00:56]} 33. Bxh4 {[%clk 0:00:33]}  Qd4 {[%clk 0:00:47]} 34. g3 {[%clk 0:00:32]}  Qd3+ {[%clk 0:00:46]} 35. Kg2 {[%clk 0:00:31]}  Bh6 {[%clk 0:00:46]} 36. Rcd1 {[%clk 0:00:30]}  Qc2+ {[%clk 0:00:47]} 37. Kh3 {[%clk 0:00:27]}  Qf5+ {[%clk 0:00:46]} 38. Kg2 {[%clk 0:00:26]}  Qc2+ {[%clk 0:00:47]} 39. Kh3 {[%clk 0:00:24]}  Be3 {[%clk 0:00:42]} 40. e6 {[%clk 0:00:22]}  Qf5+ {[%clk 0:00:41]} 41. Kh2 {[%clk 0:00:21]}  d4 {[%clk 0:00:38]} 42. e7 {[%clk 0:00:19]}  Qf2+ {[%clk 0:00:38]} 43. Kh3 {[%clk 0:00:16]}  Qf5+ {[%clk 0:00:38]} 44. Kg2 {[%clk 0:00:15]}  Qe4+ {[%clk 0:00:30]} 45. Kh2 {[%clk 0:00:14]}  Qc2+ {[%clk 0:00:26]} 46. Kh3 {[%clk 0:00:13]}  Qf5+ {[%clk 0:00:26]} 47. Kg2 {[%clk 0:00:13]}  Qe4+ {[%clk 0:00:25]} 48. Kh2 {[%clk 0:00:12]}  Qc2+ {[%clk 0:00:16]} 49. Kh3 {[%clk 0:00:10]}  Qf5+ {[%clk 0:00:17]} 1/2-1/2


[Site "https://www.chess.com"]

[Event "Titled Tuesday Blitz January 17 Early 2023"]
[White "Albertini, Luca"]
[Black "Shipov, Sergei"]
[WhiteFideId "847038"]
[BlackFideId "4113624"]
[WhiteElo "2084"]
[BlackElo "2541"]
[Result "1-0"]
[Round "03"]
[TimeControl "180+2"]
[Date "2023.01.17"]
[WhiteClock "0:00:56"]
[BlackClock "0:00:16"]

1. e4 {[%clk 0:03:00]}  e6 {[%clk 0:02:59]} 2. d4 {[%clk 0:02:59]}  d5 {[%clk 0:02:59]} 3. e5 {[%clk 0:02:58]}  c5 {[%clk 0:02:59]} 4. c3 {[%clk 0:02:56]}  Nc6 {[%clk 0:02:59]} 5. Nf3 {[%clk 0:02:56]}  Bd7 {[%clk 0:03:00]} 6. Bd3 {[%clk 0:02:56]}  cxd4 {[%clk 0:02:59]} 7. cxd4 {[%clk 0:02:56]}  Qb6 {[%clk 0:03:00]} 8. Nbd2 {[%clk 0:02:55]}  Nxd4 {[%clk 0:02:57]} 9. Nxd4 {[%clk 0:02:56]}  Qxd4 {[%clk 0:02:56]} 10. Nf3 {[%clk 0:02:57]}  Qa4 {[%clk 0:02:50]} 11. Bc2 {[%clk 0:02:54]}  Qa5+ {[%clk 0:02:47]} 12. Bd2 {[%clk 0:02:55]}  Bb4 {[%clk 0:02:47]} 13. O-O {[%clk 0:02:55]}  Bxd2 {[%clk 0:02:47]} 14. Nxd2 {[%clk 0:02:55]}  Ne7 {[%clk 0:02:46]} 15. Nb3 {[%clk 0:02:49]}  Qb6 {[%clk 0:02:41]} 16. Qh5 {[%clk 0:02:49]}  Ng6 {[%clk 0:02:38]} 17. Kh1 {[%clk 0:02:49]}  Rc8 {[%clk 0:02:34]} 18. Bxg6 {[%clk 0:02:45]}  fxg6 {[%clk 0:02:33]} 19. Qf3 {[%clk 0:02:43]}  Rf8 {[%clk 0:02:29]} 20. Qh3 {[%clk 0:02:42]}  h6 {[%clk 0:02:27]} 21. Qg4 {[%clk 0:02:30]}  Kf7 {[%clk 0:02:21]} 22. f4 {[%clk 0:02:27]}  Rc4 {[%clk 0:02:08]} 23. Rf3 {[%clk 0:02:11]}  Be8 {[%clk 0:02:02]} 24. Nd2 {[%clk 0:02:00]}  Rc2 {[%clk 0:01:59]} 25. Rb3 {[%clk 0:01:57]}  Qc6 {[%clk 0:01:41]} 26. Nf3 {[%clk 0:01:39]}  Rc1+ {[%clk 0:01:22]} 27. Rxc1 {[%clk 0:01:38]}  Qxc1+ {[%clk 0:01:23]} 28. Ng1 {[%clk 0:01:38]}  b6 {[%clk 0:01:17]} 29. Rc3 {[%clk 0:01:34]}  Qxb2 {[%clk 0:01:10]} 30. Rc7+ {[%clk 0:01:33]}  Kg8 {[%clk 0:01:10]} 31. Qxe6+ {[%clk 0:01:33]}  Bf7 {[%clk 0:00:45]} 32. Qd6 {[%clk 0:01:32]}  d4 {[%clk 0:00:29]} 33. e6 {[%clk 0:01:29]}  Be8 {[%clk 0:00:28]} 34. Qe5 {[%clk 0:01:24]}  Rf6 {[%clk 0:00:26]} 35. Rc8 {[%clk 0:01:12]}  Kh7 {[%clk 0:00:18]} 36. Rxe8 {[%clk 0:01:07]}  Qxa2 {[%clk 0:00:18]} 37. e7 {[%clk 0:01:03]}  Re6 {[%clk 0:00:16]} 38. Qb8 {[%clk 0:00:56]} 1-0


[Site "https://www.chess.com"]

[Event "Titled Tuesday Blitz January 17 Early 2023"]
[White "Lacasa Diaz, Jose Antonio"]
[Black "Aradhya, Garg"]
[WhiteFideId "2203375"]
[BlackFideId "25006746"]
[WhiteElo "2359"]
[BlackElo "2284"]
[Result "0-1"]
[Round "03"]
[TimeControl "180+2"]
[Date "2023.01.17"]
[WhiteClock "0:01:50"]
[BlackClock "0:01:56"]

1. e4 {[%clk 0:03:00]}  e5 {[%clk 0:03:00]} 2. Nf3 {[%clk 0:03:00]}  Nc6 {[%clk 0:03:00]} 3. Bb5 {[%clk 0:03:00]}  a6 {[%clk 0:03:00]} 4. Ba4 {[%clk 0:03:00]}  Nge7 {[%clk 0:03:00]} 5. c4 {[%clk 0:02:44]}  Ng6 {[%clk 0:02:54]} 6. Nc3 {[%clk 0:02:43]}  Bc5 {[%clk 0:02:53]} 7. d3 {[%clk 0:02:39]}  d6 {[%clk 0:02:52]} 8. Be3 {[%clk 0:02:38]}  Bxe3 {[%clk 0:02:47]} 9. fxe3 {[%clk 0:02:38]}  O-O {[%clk 0:02:47]} 10. O-O {[%clk 0:02:38]}  Nce7 {[%clk 0:02:44]} 11. d4 {[%clk 0:02:30]}  c6 {[%clk 0:02:43]} 12. Bc2 {[%clk 0:02:28]}  b5 {[%clk 0:02:42]} 13. b3 {[%clk 0:02:26]}  Rb8 {[%clk 0:02:30]} 14. a4 {[%clk 0:02:24]}  bxc4 {[%clk 0:02:26]} 15. bxc4 {[%clk 0:02:23]}  a5 {[%clk 0:02:26]} 16. d5 {[%clk 0:02:16]}  Ba6 {[%clk 0:02:25]} 17. Bd3 {[%clk 0:02:15]}  Rb4 {[%clk 0:02:19]} 18. Qe2 {[%clk 0:02:08]}  Qb6 {[%clk 0:02:04]} 19. Rfc1 {[%clk 0:01:54]}  Rb2 {[%clk 0:01:57]} 20. Rc2 {[%clk 0:01:49]}  Rxc2 {[%clk 0:01:57]} 21. Bxc2 {[%clk 0:01:50]}  Qb2 {[%clk 0:01:56]} 0-1


[Site "https://www.chess.com"]